fUSD/lending_fUSD_20240720
["ID","MTS","AMOUNT","RATE_DAILY","PERIOD"]
[332735347,1721494249749,-369.0,0.00026169,2]
[332735349,1721494249758,-9458.01,0.000262,2]
[332735351,1721494249768,-1915.532236,0.00026296,2]
[332735353,1721494249777,-2681.454358,0.00026296,2]
[332735355,1721494249787,-176.000259,0.00026296,2]
[332735357,1721494249796,-1839.096108,0.00026296,2]
[332735358,1721494249805,-185.533073,0.00026296,2]
[332735359,1721494249815,-1417.414595,0.00026296,2]
[332735360,1721494249824,-1871.826455,0.00026296,2]
[332735361,1721494249834,-1308.114353,0.00026296,2]
[332735362,1721494249845,-172.303818,0.00026296,2]
[332735363,1721494249854,-176.924804,0.00026296,2]
[332735364,1721494249864,-182.537472,0.00026296,2]
[332735365,1721494249873,-174.686817,0.00026296,2]
[332735366,1721494249883,-355.661472,0.00026296,2]
[332735367,1721494249892,-441.355282,0.00026296,2]
[332735368,1721494249901,-764.370273,0.00026296,2]
[332735369,1721494249910,-186.108597,0.00026296,2]
[332735370,1721494249920,-177.720322,0.00026296,2]
[332735371,1721494249929,-185.567585,0.00026296,2]
[332735372,1721494249938,-388.902474,0.00026296,2]
[332735373,1721494249948,-173.758332,0.00026296,2]
[332735374,1721494249962,-220.963599,0.00026296,2]
[332735375,1721494249971,-1601.489689,0.00026296,2]
[332735376,1721494249980,-2062.030237,0.00026296,2]
[332735377,1721494249990,-179.541875,0.00026296,2]
[332735378,1721494250000,-376.568945,0.00026296,2]
[332735379,1721494250009,-305.767684,0.00026296,2]
[332735380,1721494250018,-208.937942,0.00026296,2]
[332735381,1721494250028,-193.868129,0.00026296,2]
[332735382,1721494250039,-201.533203,0.00026296,2]
[332735383,1721494250049,-8916.305812,0.00026296,2]
[332735384,1721494250058,-835.88,0.00026301,2]
[332735386,1721494250067,-833.23,0.00026305,2]
[332735387,1721494250076,-418.86,0.00026305,2]
[332735388,1721494250086,-833.23,0.00026305,2]
[332735389,1721494250095,-833.23,0.00026305,2]
[332735390,1721494250104,-151.5448152,0.00026348,2]
[332735391,1721494250113,-355.62,0.00026357,2]
[332735392,1721494250122,-710.84,0.00026357,2]
[332735393,1721494250131,-150.0,0.00026357,2]
[332735394,1721494250141,-150.0,0.00026357,2]
[332735395,1721494250150,-150.0,0.00026357,2]
[332735396,1721494250159,-150.0,0.00026357,2]
[332735397,1721494250168,-319.44,0.00026357,2]
[332735398,1721494250177,-530.33,0.00026357,2]
[332735399,1721494250187,-529.63,0.00026357,2]
[332735400,1721494250196,-355.62,0.00026357,2]
[332735401,1721494250205,-329.66,0.00026357,2]
[332735402,1721494250215,-241.091701,0.00026438,2]
[332735403,1721494250224,-2814.648671,0.00026438,2]
[332735404,1721494250233,-308.469847,0.00026438,2]
[332735405,1721494250243,-3396.42162,0.00026438,2]
[332735406,1721494250253,-152.693358,0.00026438,2]
[332735407,1721494250262,-150.0,0.00026532,2]
[332735408,1721494250271,-503.79,0.00026586,2]
[332735409,1721494250281,-265.54,0.00026614,2]
[332735410,1721494250290,-151.5448152,0.00026623,2]
[332735411,1721494250300,-1915.532236,0.00026625,2]
[332735412,1721494250309,-2681.454358,0.00026625,2]
[332735413,1721494250318,-1839.096108,0.00026625,2]
[332735414,1721494250327,-1417.414595,0.00026625,2]
[332735415,1721494250336,-1871.826455,0.00026625,2]
[332735416,1721494250345,-1308.114353,0.00026625,2]
[332735417,1721494250355,-355.661472,0.00026625,2]
[332735418,1721494250364,-441.355282,0.00026625,2]
[332735419,1721494250373,-764.370273,0.00026625,2]
[332735420,1721494250383,-388.902474,0.00026625,2]
[332735421,1721494250392,-220.963599,0.00026625,2]
[332735422,1721494250402,-1601.489689,0.00026625,2]
[332735423,1721494250411,-2062.030237,0.00026625,2]
[332735424,1721494250420,-376.568945,0.00026625,2]
[332735425,1721494250429,-305.767684,0.00026625,2]
[332735426,1721494250438,-208.937942,0.00026625,2]
[332735427,1721494250448,-8916.305812,0.00026625,2]
[332735428,1721494250457,-1017.12656365,0.00026685,2]
[332735429,1721494250467,-173.758332,0.00026735,2]
[332735430,1721494250477,-241.091701,0.00026764,2]
[332735431,1721494250486,-2814.648671,0.00026764,2]
[332735432,1721494250496,-308.469847,0.00026764,2]
[332735433,1721494250505,-3396.42162,0.00026764,2]
[332735434,1721494250514,-152.693358,0.00026764,2]
[332735435,1721494250524,-545.6928515,0.0002679,2]
[332735436,1721494250534,-155.0,0.0002684,14]
[332735437,1721494250543,-151.5448152,0.00026898,2]
[332735438,1721494250553,-530.85417647,0.00026904,2]
[332735439,1721494250562,-919.29,0.00026921,2]
[332735440,1721494250572,-176.924804,0.00026954,2]
[332735441,1721494250581,-1915.532236,0.00026954,2]
[332735442,1721494250590,-2681.454358,0.00026954,2]
[332735443,1721494250599,-1839.096108,0.00026954,2]
[332735444,1721494250609,-1417.414595,0.00026954,2]
[332735445,1721494250618,-1871.826455,0.00026954,2]
[332735446,1721494250627,-1308.114353,0.00026954,2]
[332735447,1721494250636,-355.661472,0.00026954,2]
[332735448,1721494250645,-441.355282,0.00026954,2]
[332735449,1721494250654,-764.370273,0.00026954,2]
[332735450,1721494250664,-388.902474,0.00026954,2]
[332735451,1721494250673,-220.963599,0.00026954,2]
[332735452,1721494250683,-1601.489689,0.00026954,2]
[332735453,1721494250691,-2062.030237,0.00026954,2]
[332735454,1721494250700,-376.568945,0.00026954,2]
[332735455,1721494250709,-305.767684,0.00026954,2]
[332735456,1721494250719,-208.937942,0.00026954,2]
[332735457,1721494250728,-8916.305812,0.00026954,2]
[332735458,1721494250737,-587.17741413,0.00027,2]
[332735459,1721494250747,-149043.26226536,0.00027,7]
[332735460,1721494250756,-771.92486134,0.00027,10]
[332735461,1721494250765,-1877.70183332,0.00027,120]
[332735462,1721494250774,-450.0,0.00027,2]
[332735463,1721494250783,-2000.0,0.00027,2]
[332735464,1721494250792,-3102.812548,0.0002701,2]
[332735465,1721494250801,-241.091701,0.00027091,2]
[332735466,1721494250810,-2814.648671,0.00027091,2]
[332735467,1721494250821,-308.469847,0.00027091,2]
[332735468,1721494250832,-3396.42162,0.00027091,2]
[332735469,1721494250842,-152.693358,0.00027091,2]
[332735470,1721494250854,-150.0,0.00027109,2]
[332735471,1721494250866,-835.88,0.00027123,2]
[332735472,1721494250876,-151.0,0.00027126,2]
[332735473,1721494250885,-1400.0,0.00027149,2]
[332735474,1721494250894,-173.758332,0.00027173,2]
[332735475,1721494250903,-151.5448152,0.00027173,2]
[332735476,1721494250913,-425.27,0.00027179,2]
[332735477,1721494250922,-425.27,0.00027179,2]
[332735478,1721494250932,-529.63,0.00027179,2]
[332735479,1721494250941,-529.63,0.00027179,2]
[332735480,1721494250950,-354.43,0.00027179,2]
[332735481,1721494250964,-165.22,0.00027179,2]
[332735482,1721494250973,-151.16,0.00027179,2]
[332735483,1721494250982,-529.63,0.00027179,2]
[332735484,1721494250992,-529.63,0.00027179,2]
[332735485,1721494251002,-526.76,0.00027179,2]
[332735486,1721494251012,-165.07,0.00027179,2]
[332735487,1721494251021,-150.0,0.00027179,2]
[332735488,1721494251032,-150.0,0.00027179,2]
[332735489,1721494251042,-150.0,0.00027179,2]
[332735490,1721494251051,-300.0,0.00027179,2]
[332735491,1721494251060,-150.0,0.00027179,2]
[332735492,1721494251069,-150.0,0.00027179,2]
[332735493,1721494251078,-848.32,0.00027179,2]
[332735494,1721494251087,-425.27,0.00027179,2]
[332735495,1721494251096,-425.27,0.00027179,2]
[332735496,1721494251105,-425.27,0.00027179,2]
[332735497,1721494251114,-425.27,0.00027179,2]
[332735498,1721494251123,-425.27,0.00027179,2]
[332735499,1721494251132,-425.27,0.00027179,2]
[332735500,1721494251142,-425.27,0.00027179,2]
[332735501,1721494251151,-1965.12,0.000272,7]
[332735502,1721494251159,-150.0,0.00027265,2]
[332735503,1721494251169,-150.0,0.00027265,2]
[332735504,1721494251178,-150.0,0.00027265,2]
[332735505,1721494251187,-300.96,0.00027265,2]
[332735506,1721494251196,-1915.532236,0.00027283,2]
[332735507,1721494251205,-2681.454358,0.00027283,2]
[332735508,1721494251214,-1839.096108,0.00027283,2]
[332735509,1721494251223,-1417.414595,0.00027283,2]
[332735510,1721494251232,-1308.114353,0.00027283,2]
[332735511,1721494251244,-1871.826455,0.00027283,2]
[332735512,1721494251253,-355.661472,0.00027283,2]
[332735513,1721494251263,-441.355282,0.00027283,2]
[332735514,1721494251272,-764.370273,0.00027283,2]
[332735515,1721494251282,-388.902474,0.00027283,2]
[332735516,1721494251292,-220.963599,0.00027283,2]
[332735517,1721494251302,-1601.489689,0.00027283,2]
[332735518,1721494251312,-2062.030237,0.00027283,2]
[332735519,1721494251321,-376.568945,0.00027283,2]
[332735520,1721494251331,-305.767684,0.00027283,2]
[332735521,1721494251341,-208.937942,0.00027283,2]
[332735522,1721494251351,-8916.305812,0.00027283,2]
[332735523,1721494251361,-3318.65,0.000273,2]
[332735524,1721494251372,-453.0,0.00027384,2]
[332735525,1721494251384,-453.0,0.00027384,2]
[332735526,1721494251396,-1911.91378549,0.00027385,2]
[332735527,1721494251406,-150.84249083,0.00027385,2]
[332735528,1721494251415,-289.64766196,0.0002739,15]
[332735529,1721494251424,-588.06455192,0.0002739,20]
[332735530,1721494251434,-294.03227596,0.0002739,25]
[332735531,1721494251444,-294.03227596,0.0002739,30]
[332735532,1721494251454,-165.92612166,0.00027396,2]
[332735533,1721494251463,-167.66170213,0.00027397,2]
[332735534,1721494251473,-203.02267962,0.00027397,60]
[332735535,1721494251483,-150.0,0.00027397,4]
[332735536,1721494251494,-150.0,0.00027397,7]
[332735537,1721494251503,-150.0,0.00027397,7]
[332735538,1721494251512,-150.0,0.00027397,7]
[332735539,1721494251522,-150.0,0.00027397,7]
[332735540,1721494251531,-150.0,0.00027397,7]
[332735541,1721494251541,-150.0,0.00027397,7]
[332735542,1721494251551,-150.0,0.00027397,7]
[332735543,1721494251560,-150.0,0.00027397,7]
[332735544,1721494251570,-150.0,0.00027397,7]
[332735545,1721494251579,-150.0,0.00027397,7]
[332735546,1721494251588,-150.0,0.00027397,7]
[332735547,1721494251598,-150.0,0.00027397,7]
[332735548,1721494251608,-150.0,0.00027397,7]
[332735549,1721494251617,-150.0,0.00027397,7]
[332735550,1721494251627,-151.55180261,0.00027397,7]
[332735551,1721494251636,-1000.0,0.00027397,13]
[332735552,1721494251646,-1000.0,0.00027397,13]
[332735553,1721494251655,-1000.0,0.00027397,13]
[332735554,1721494251665,-1000.0,0.00027397,13]
[332735555,1721494251675,-1000.0,0.00027397,13]
[332735556,1721494251684,-1000.0,0.00027397,13]
[332735557,1721494251694,-1000.0,0.00027397,13]
[332735558,1721494251703,-1000.0,0.00027397,13]
[332735559,1721494251713,-1000.0,0.00027397,13]
[332735560,1721494251722,-1000.0,0.00027397,13]
[332735561,1721494251732,-1000.0,0.00027397,13]
[332735562,1721494251742,-1000.0,0.00027397,13]
[332735563,1721494251753,-1000.0,0.00027397,13]
[332735564,1721494251763,-1000.0,0.00027397,13]
[332735565,1721494251773,-1000.0,0.00027397,13]
[332735566,1721494251783,-1000.0,0.00027397,13]
[332735567,1721494251792,-1000.0,0.00027397,13]
[332735568,1721494251802,-1000.0,0.00027397,13]
[332735569,1721494251812,-1000.0,0.00027397,13]
[332735570,1721494251821,-1000.0,0.00027397,13]
[332735571,1721494251831,-8101.09,0.00027397,15]
[332735572,1721494251841,-212.779102,0.00027397,7]
[332735573,1721494251851,-212.779102,0.00027397,7]
[332735574,1721494251860,-212.779102,0.00027397,7]
[332735575,1721494251870,-212.779102,0.00027397,7]
[332735576,1721494251879,-212.779102,0.00027397,7]
[332735577,1721494251890,-212.779102,0.00027397,7]
[332735578,1721494251900,-212.779102,0.00027397,7]
[332735579,1721494251910,-212.779102,0.00027397,7]
[332735580,1721494251919,-212.779102,0.00027397,7]
[332735581,1721494251929,-212.779102,0.00027397,7]
[332735582,1721494251939,-212.779102,0.00027397,7]
[332735583,1721494251948,-212.779102,0.00027397,7]
[332735584,1721494251963,-212.779102,0.00027397,7]
[332735585,1721494251972,-212.779102,0.00027397,7]
[332735586,1721494251982,-212.779102,0.00027397,7]
[332735587,1721494251992,-212.779102,0.00027397,7]
[332735588,1721494252004,-212.779102,0.00027397,7]
[332735589,1721494252013,-212.779102,0.00027397,7]
[332735590,1721494252030,-212.779102,0.00027397,7]
[332735591,1721494252052,-212.779104,0.00027397,7]
[332735592,1721494252074,-1000.0,0.00027397,13]
[332735593,1721494252098,-1000.0,0.00027397,13]
[332735594,1721494252124,-1000.0,0.00027397,13]
[332735595,1721494252171,-1000.0,0.00027397,13]
[332735596,1721494252214,-1000.0,0.00027397,13]
[332735597,1721494252264,-1000.0,0.00027397,13]
[332735598,1721494252275,-1000.0,0.00027397,13]
[332735599,1721494252288,-1000.0,0.00027397,13]
[332735600,1721494252298,-1060.0,0.00027397,13]
[332735601,1721494252308,-280.05,0.00027397,10]
[332735602,1721494252318,-155.01488192,0.00027398,2]
[332735603,1721494252327,-3375.49906777,0.000274,2]
[332735604,1721494252338,-9458.01,0.000274,2]
[332735605,1721494252347,-1720.51,0.000274,30]
[332735606,1721494252357,-1720.51,0.000274,30]
[332735607,1721494252367,-1720.51,0.000274,30]
[332735608,1721494252376,-1720.51,0.000274,30]
[332735609,1721494252386,-1720.51,0.000274,30]
[332735610,1721494252397,-1720.51,0.000274,30]
[332735611,1721494252406,-1720.51,0.000274,30]
[332735612,1721494252416,-1720.51,0.000274,30]
[332735613,1721494252426,-1720.51,0.000274,30]
[332735614,1721494252436,-1720.51,0.000274,30]
[332735615,1721494252446,-1911.91378549,0.00027409,2]
[332735616,1721494252456,-241.091701,0.00027417,2]
[332735617,1721494252466,-2814.648671,0.00027417,2]
[332735618,1721494252476,-308.469847,0.00027417,2]
[332735619,1721494252486,-3396.42162,0.00027417,2]
[332735620,1721494252500,-152.693358,0.00027417,2]
[332735621,1721494252510,-187.414048,0.00027417,2]
[332735622,1721494252520,-188.137099,0.00027417,2]
[332735623,1721494252530,-338.12352643,0.00027422,2]
[332735624,1721494252540,-156.69445,0.00027439,2]
[332735625,1721494252550,-260.63258744,0.00027447,2]
[332735626,1721494252560,-151.5448152,0.00027448,2]
[332735627,1721494252570,-156.69445,0.00027477,2]
[332735628,1721494252580,-363.85921497,0.00027489,2]
[332735629,1721494252591,-190.13844816,0.000275,2]
[332735630,1721494252600,-151.20739584,0.000275,2]
[332735631,1721494252611,-381.0,0.0002754,2]
[332735632,1721494252621,-1911.91378549,0.00027546,2]
[332735633,1721494252631,-363.85921497,0.00027552,2]
[332735634,1721494252641,-155.01488192,0.00027588,2]
[332735635,1721494252651,-701.68499007,0.00027609,2]
[332735636,1721494252662,-173.758332,0.00027611,2]
[332735637,1721494252672,-176.924804,0.00027611,2]
[332735638,1721494252682,-172.303818,0.00027611,2]
[332735639,1721494252692,-182.537472,0.00027611,2]
[332735640,1721494252702,-186.108597,0.00027611,2]
[332735641,1721494252712,-177.720322,0.00027611,2]
[332735642,1721494252723,-201.533203,0.00027611,2]
[332735643,1721494252733,-1915.532236,0.00027611,2]
[332735644,1721494252743,-2681.454358,0.00027611,2]
[332735645,1721494252755,-1839.096108,0.00027611,2]
[332735647,1721494252765,-1417.414595,0.00027611,2]
[332735649,1721494252775,-1308.114353,0.00027611,2]
[332735651,1721494252785,-1871.826455,0.00027611,2]
[332735653,1721494252795,-355.661472,0.00027611,2]
[332735655,1721494252806,-441.355282,0.00027611,2]
[332735657,1721494252816,-764.370273,0.00027611,2]
[332735659,1721494252827,-388.902474,0.00027611,2]
[332735661,1721494252837,-220.963599,0.00027611,2]
[332735663,1721494252847,-1601.489689,0.00027611,2]
[332735665,1721494252857,-2062.030237,0.00027611,2]
[332735666,1721494252868,-376.568945,0.00027611,2]
[332735667,1721494252878,-305.767684,0.00027611,2]
[332735668,1721494252888,-208.937942,0.00027611,2]
[332735669,1721494252898,-8916.305812,0.00027611,2]
[332735670,1721494252908,-408.97304285,0.00027635,2]
[332735671,1721494252917,-186.77256119,0.00027666,2]
[332735672,1721494252927,-150.0,0.00027686,2]
[332735673,1721494252936,-338.12352643,0.00027708,2]
[332735674,1721494252946,-155.01488192,0.00027711,2]
[332735675,1721494252956,-408.97304285,0.00027715,2]
[332735676,1721494252968,-151.5448152,0.00027723,2]
[332735677,1721494252977,-166.66666666,0.00027725,2]
[332735678,1721494252987,-161.94800827,0.00027725,2]
[332735679,1721494252997,-169.60567666,0.00027736,2]
[332735680,1721494253007,-406.50280757,0.00027742,2]
[332735681,1721494253017,-696.91676953,0.00027768,2]
[332735682,1721494253026,-300.06609245,0.00027776,2]
[332735683,1721494253037,-166.66666666,0.00027809,2]
[332735684,1721494253046,-238.49791941,0.0002782,2]
[332735685,1721494253055,-408.97304285,0.00027826,2]
[332735686,1721494253065,-408.97304285,0.00027827,2]
[332735687,1721494253075,-391.0,0.0002783,15]
[332735688,1721494253085,-161.40892712,0.00027847,2]
[332735689,1721494253095,-155.01488192,0.00027848,2]
[332735690,1721494253106,-406.50280757,0.00027872,2]
[332735691,1721494253116,-238.49791941,0.00027884,2]
[332735692,1721494253126,-260.63258744,0.00027885,2]
[332735693,1721494253136,-156.69445,0.00027885,2]
[332735695,1721494253146,-151.20739584,0.00027886,2]
[332735696,1721494253156,-169.60567666,0.00027898,2]
[332735697,1721494253166,-406.50280757,0.00027903,2]
[332735698,1721494253176,-166.66666666,0.00027905,2]
[332735699,1721494253186,-173.0,0.0002791,2]
[332735700,1721494253196,-835.88,0.00027945,2]
[332735701,1721494253206,-293.2379086,0.00027962,2]
[332735702,1721494253216,-187.17613041,0.00027969,2]
[332735703,1721494253226,-701.68499007,0.00027972,2]
[332735704,1721494253235,-155.01488192,0.00027976,2]
[332735705,1721494253246,-151.20739584,0.00027984,2]
[332735706,1721494253256,-238.49791941,0.00027986,2]
[332735707,1721494253266,-151.5448152,0.00027998,2]
[332735708,1721494253276,-191.871441,0.00027999,2]
[332735709,1721494253286,-792.41716127,0.00028,2]
[332735710,1721494253296,-371.40691921,0.00028,2]
[332735711,1721494253306,-478.07156661,0.00028,2]
[332735712,1721494253316,-14915.65351774,0.00028,2]
[332735713,1721494253326,-166.66666666,0.00028052,2]
[332735714,1721494253336,-238.49791941,0.00028056,2]
[332735715,1721494253346,-363.85921497,0.00028065,2]
[332735716,1721494253356,-186.92136522,0.00028068,2]
[332735717,1721494253366,-156.69445,0.00028073,2]
[332735718,1721494253376,-338.12352643,0.00028079,2]
[332735719,1721494253386,-529.63,0.00028087,2]
[332735720,1721494253396,-165.22,0.00028087,2]
[332735721,1721494253406,-165.22,0.00028087,2]
[332735722,1721494253416,-736.57,0.00028087,2]
[332735723,1721494253426,-220.38,0.00028087,2]
[332735724,1721494253435,-529.63,0.00028087,2]
[332735725,1721494253445,-529.63,0.00028087,2]
[332735726,1721494253455,-529.63,0.00028087,2]
[332735727,1721494253465,-300.06609245,0.00028093,2]
[332735728,1721494253475,-177.90575917,0.000281,120]
[332735729,1721494253484,-166.66666665,0.000281,2]
[332735730,1721494253494,-408.97304285,0.00028102,2]
[332735731,1721494253505,-338.12352643,0.00028103,2]
[332735732,1721494253519,-166.66666667,0.00028104,2]
[332735733,1721494253529,-187.17613041,0.00028106,2]
[332735734,1721494253539,-166.97047665,0.00028138,2]
[332735735,1721494253548,-260.63258744,0.00028149,2]
[332735736,1721494253558,-696.91676953,0.0002818,2]
[332735737,1721494253568,-265.54,0.0002818,2]
[332735738,1721494253578,-1911.91378549,0.00028181,2]
[332735739,1721494253588,-408.97304285,0.00028183,2]
[332735740,1721494253598,-408.97304285,0.00028215,2]
[332735741,1721494253608,-166.97047665,0.00028217,2]
[332735742,1721494253866,-300.06609245,0.00028235,2]
[332735743,1721494253914,-161.94800827,0.00028238,2]
[332735744,1721494253925,-150.0,0.00028263,2]
[332735745,1721494253935,-156.69445,0.00028266,2]
[332735746,1721494253946,-1911.91378549,0.0002827,2]
[332735747,1721494253957,-238.49791941,0.0002827,2]
[332735748,1721494253969,-150.84249083,0.00028271,2]
[332735749,1721494253980,-151.5448152,0.00028273,2]
[332735750,1721494253990,-300.06609245,0.00028279,2]
[332735751,1721494254000,-155.30181468,0.00028282,2]
[332735752,1721494254010,-338.12352643,0.00028284,2]
[332735753,1721494254020,-763.58562654,0.00028297,120]
[332735754,1721494254029,-1965.12,0.000283,14]
[332735755,1721494254040,-187.17613041,0.00028307,2]
[332735756,1721494254050,-155.30181468,0.00028336,2]
[332735757,1721494254061,-363.85921497,0.00028361,2]
[332735758,1721494254071,-701.68499007,0.0002842,2]
[332735759,1721494254081,-338.12352643,0.00028437,2]
[332735760,1721494254090,-696.91676953,0.00028441,2]
[332735761,1721494254100,-1911.91378549,0.00028442,2]
[332735762,1721494254110,-701.68499007,0.00028443,2]
[332735763,1721494254119,-154.76447469,0.00028448,2]
[332735764,1721494254129,-166.66666666,0.00028458,2]
[332735765,1721494254139,-151.20739584,0.00028465,2]
[332735766,1721494254149,-363.85921497,0.00028467,2]
[332735767,1721494254159,-363.85921497,0.00028481,2]
[332735768,1721494254168,-178.62,0.00028493,2]
[332735769,1721494254178,-300.06609245,0.00028509,2]
[332735770,1721494254187,-156.69445,0.00028515,2]
[332735771,1721494254197,-196.0,0.0002853,18]
[332735772,1721494254207,-186.92136522,0.00028531,2]
[332735773,1721494254216,-151.0,0.00028538,3]
[332735774,1721494254226,-161.94800827,0.00028541,2]
[332735775,1721494254236,-151.5448152,0.00028548,2]
[332735776,1721494254246,-530.85417647,0.00028554,2]
[332735777,1721494254256,-406.50280757,0.00028577,2]
[332735778,1721494254266,-9458.01,0.000286,2]
[332735779,1721494254276,-408.97304285,0.00028608,2]
[332735780,1721494254287,-151.20739584,0.00028613,2]
[332735781,1721494254296,-155.01488192,0.0002862,2]
[332735782,1721494254307,-165.83358507,0.00028624,2]
[332735783,1721494254317,-338.12352643,0.00028642,2]
[332735784,1721494254327,-150.84249083,0.00028648,2]
[332735785,1721494254338,-558.0,0.00028655,2]
[332735786,1721494254347,-701.68499007,0.00028655,2]
[332735787,1721494254357,-260.63258744,0.00028663,2]
[332735788,1721494254367,-696.91676953,0.00028672,2]
[332735789,1721494254377,-155.30181468,0.00028683,2]
[332735790,1721494254387,-186.92136522,0.00028696,2]
[332735791,1721494254397,-155.30181468,0.00028698,2]
[332735792,1721494254406,-151.0,0.000287,2]
[332735793,1721494254416,-250.49088,0.000287,2]
[332735794,1721494254426,-696.91676953,0.00028701,2]
[332735795,1721494254436,-300.06609245,0.00028726,2]
[332735796,1721494254446,-701.68499007,0.0002873,2]
[332735797,1721494254456,-406.50280757,0.00028747,2]
[332735798,1721494254466,-835.88,0.00028767,2]
[332735799,1721494254476,-288.499,0.00028769,2]
[332735800,1721494254486,-696.91676953,0.00028772,2]
[332735801,1721494254496,-3000.0,0.0002879,2]
[332735802,1721494254506,-151.5448152,0.00028823,2]
[332735803,1721494254516,-155.01488192,0.00028826,2]
[332735804,1721494254526,-701.68499007,0.00028828,2]
[332735805,1721494254535,-300.06609245,0.00028837,2]
[332735806,1721494254545,-150.0,0.00028839,2]
[332735807,1721494254554,-503.79,0.0002885,2]
[332735808,1721494254564,-166.66666666,0.0002885,2]
[332735809,1721494254574,-238.49791941,0.00028855,2]
[332735810,1721494254583,-156.69445,0.00028862,2]
[332735811,1721494254592,-186.92136522,0.00028865,2]
[332735812,1721494254602,-191.87144101,0.00028869,2]
[332735813,1721494254611,-363.85921497,0.00028891,2]
[332735814,1721494254621,-363.85921497,0.00028894,2]
[332735815,1721494254631,-3318.65,0.000289,2]
[332735816,1721494254640,-152.49,0.000289,2]
[332735817,1721494254650,-152.49,0.000289,2]
[332735818,1721494254659,-152.49,0.000289,2]
[332735819,1721494254669,-152.49,0.000289,2]
[332735820,1721494254679,-152.49,0.000289,2]
[332735821,1721494254688,-152.49,0.000289,2]
[332735822,1721494254698,-152.49,0.000289,2]
[332735823,1721494254707,-152.49,0.000289,2]
[332735824,1721494254717,-152.49,0.000289,2]
[332735825,1721494254726,-152.49,0.000289,2]
[332735826,1721494254736,-152.49,0.000289,2]
[332735827,1721494254745,-152.49,0.000289,2]
[332735828,1721494254755,-152.49,0.000289,2]
[332735829,1721494254764,-152.49,0.000289,2]
[332735830,1721494254774,-150.0,0.00028908,2]
[332735831,1721494254783,-355.62,0.00028908,2]
[332735832,1721494254792,-150.0,0.00028908,2]
[332735833,1721494254801,-355.62,0.00028908,2]
[332735834,1721494254811,-150.0,0.00028908,2]
[332735835,1721494254821,-355.62,0.00028908,2]
[332735836,1721494254830,-150.0,0.00028908,2]
[332735837,1721494254840,-150.0,0.00028908,2]
[332735838,1721494254849,-165.22,0.00028908,2]
[332735839,1721494254859,-150.0,0.00028908,2]
[332735840,1721494254868,-150.0,0.00028908,2]
[332735841,1721494254878,-165.22,0.00028908,2]
[332735842,1721494254887,-150.0,0.00028908,2]
[332735843,1721494254896,-150.0,0.00028908,2]
[332735844,1721494254906,-355.62,0.00028908,2]
[332735845,1721494254915,-165.22,0.00028908,2]
[332735846,1721494254925,-150.0,0.00028908,2]
[332735847,1721494254935,-150.0,0.00028908,2]
[332735848,1721494254944,-165.22,0.00028908,2]
[332735849,1721494254954,-338.9,0.00028908,2]
[332735850,1721494254967,-165.22,0.00028908,2]
[332735851,1721494254977,-165.22,0.00028908,2]
[332735852,1721494254987,-300.0,0.00028908,2]
[332735853,1721494254997,-529.63,0.00028908,2]
[332735854,1721494255009,-165.22,0.00028908,2]
[332735855,1721494255021,-150.0,0.00028908,2]
[332735856,1721494255031,-529.63,0.00028908,2]
[332735857,1721494255042,-529.63,0.00028908,2]
[332735858,1721494255053,-150.0,0.00028908,2]
[332735859,1721494255062,-165.22,0.00028908,2]
[332735860,1721494255072,-529.63,0.00028908,2]
[332735861,1721494255083,-150.0,0.00028908,2]
[332735862,1721494255092,-1059.06,0.00028908,2]
[332735863,1721494255102,-150.0,0.00028908,2]